fUSD/lending_fUSD_20240216
["ID","MTS","AMOUNT","RATE_DAILY","PERIOD"]
[314242907,1708116662638,-500.0,0.00049589,60]
[314242908,1708116662647,-500.0,0.00049589,60]
[314242909,1708116662657,-1107.39,0.00049589,60]
[314242910,1708116662667,-807.16,0.00049589,60]
[314242911,1708116662677,-500.0,0.00049589,60]
[314242912,1708116662686,-3663.42,0.00049589,60]
[314242913,1708116662696,-500.0,0.00049589,60]
[314242914,1708116662706,-500.0,0.00049589,60]
[314242915,1708116662715,-500.0,0.00049589,60]
[314242916,1708116662724,-500.0,0.00049589,60]
[314242917,1708116662735,-520.13,0.00049589,60]
[314242918,1708116662745,-583.02,0.00049589,60]
[314242919,1708116662756,-500.0,0.00049589,60]
[314242920,1708116662765,-500.0,0.00049589,60]
[314242921,1708116662884,-500.0,0.00049589,60]
[314242922,1708116662893,-500.0,0.00049589,60]
[314242923,1708116662902,-500.0,0.00049589,60]
[314242924,1708116662911,-1442.33,0.00049589,60]
[314242925,1708116662921,-500.0,0.00049589,60]
[314242926,1708116662930,-624.82,0.00049589,60]
[314242927,1708116662939,-500.0,0.00049589,60]
[314242928,1708116662948,-500.0,0.00049589,60]
[314242929,1708116662957,-500.0,0.00049589,60]
[314242930,1708116662966,-500.0,0.00049589,60]
[314242931,1708116662976,-3482.63,0.00049589,60]
[314242932,1708116662985,-500.0,0.00049589,60]
[314242933,1708116662995,-500.0,0.00049589,60]
[314242934,1708116663004,-500.0,0.00049589,60]
[314242935,1708116663014,-563.04,0.00049589,60]
[314242936,1708116663023,-500.0,0.00049589,60]
[314242937,1708116663033,-500.0,0.00049589,60]
[314242938,1708116663042,-500.0,0.00049589,60]
[314242939,1708116663051,-566.64365005,0.00049589,60]
[314242940,1708116663060,-500.0,0.00049589,60]
[314242941,1708116663069,-500.0,0.00049589,60]
[314242942,1708116663079,-500.0,0.00049589,60]
[314242943,1708116663088,-500.0,0.00049589,60]
[314242944,1708116663098,-262.36507941,0.00049589,60]
[314242945,1708116663107,-2545.03,0.00049589,60]
[314242946,1708116663117,-500.0,0.00049589,60]
[314242947,1708116663126,-500.0,0.00049589,60]
[314242948,1708116663136,-698.93,0.00049589,60]
[314242949,1708116663145,-500.0,0.00049589,60]
[314242950,1708116663154,-500.0,0.00049589,60]
[314242951,1708116663164,-500.0,0.00049589,60]
[314242952,1708116663173,-500.0,0.00049589,60]
[314242953,1708116663182,-665.28,0.00049589,60]
[314242954,1708116663191,-640.94,0.00049589,60]
[314242955,1708116663201,-561.71,0.00049589,60]
[314242956,1708116663210,-500.0,0.00049589,60]
[314242957,1708116663221,-863.75,0.00049589,60]
[314242958,1708116663230,-843.46,0.00049589,60]
[314242959,1708116663240,-505.82,0.00049589,60]
[314242960,1708116663249,-500.0,0.00049589,60]
[314242961,1708116663259,-500.0,0.00049589,60]
[314242962,1708116663270,-500.0,0.00049589,60]
[314242963,1708116663280,-500.0,0.00049589,60]
[314242964,1708116663289,-500.0,0.00049589,60]
[314242965,1708116663301,-517.16143446,0.00049589,60]
[314242966,1708116663310,-1028.79,0.00049589,60]
[314242967,1708116663320,-500.0,0.00049589,60]
[314242968,1708116663329,-913.47,0.00049589,60]
[314242969,1708116663339,-2799.58,0.00049589,60]
[314242970,1708116663348,-274.37836583,0.00049589,60]
[314242971,1708116663357,-631.37,0.00049589,60]
[314242972,1708116663366,-500.0,0.00049589,60]
[314242973,1708116663376,-903.5,0.00049589,60]
[314242974,1708116663386,-500.0,0.00049589,60]
[314242975,1708116663395,-695.62,0.00049589,60]
[314242976,1708116663404,-2239.25,0.00049589,60]
[314242977,1708116663413,-500.0,0.00049589,60]
[314242978,1708116663423,-500.0,0.00049589,60]
[314242979,1708116663432,-2528.97,0.00049589,60]
[314242980,1708116663442,-645.41,0.00049589,60]
[314242981,1708116663451,-500.0,0.00049589,60]
[314242982,1708116663461,-500.0,0.00049589,7]
[314242983,1708116663471,-500.0,0.00049589,60]
[314242984,1708116663480,-500.0,0.00049589,60]
[314242985,1708116663490,-500.0,0.00049589,60]
[314242986,1708116663500,-500.0,0.00049589,60]
[314242987,1708116663509,-500.0,0.00049589,60]
[314242988,1708116663519,-7047.5,0.00049589,60]
[314242989,1708116663529,-500.0,0.00049589,60]
[314242990,1708116663539,-500.0,0.00049589,60]
[314242991,1708116663548,-659.99,0.00049589,60]
[314242992,1708116663558,-559.9,0.00049589,60]
[314242993,1708116663567,-731.09,0.00049589,2]
[314242994,1708116663576,-500.0,0.00049589,60]
[314242995,1708116663586,-500.0,0.00049589,60]
[314242996,1708116663595,-500.0,0.00049589,60]
[314242997,1708116663605,-500.0,0.00049589,60]
[314242998,1708116663614,-1628.19,0.00049589,60]
[314242999,1708116663623,-500.0,0.00049589,60]
[314243000,1708116663633,-500.0,0.00049589,14]
[314243001,1708116663642,-500.0,0.00049589,60]
[314243002,1708116663651,-500.0,0.00049589,60]
[314243003,1708116663660,-1604.63,0.00049589,60]
[314243004,1708116663669,-500.0,0.00049589,60]
[314243005,1708116663678,-722.94,0.00049589,60]
[314243006,1708116663688,-500.0,0.00049589,60]
[314243007,1708116663697,-544.82,0.00049589,60]
[314243008,1708116663706,-545.37,0.00049589,60]
[314243009,1708116663715,-500.0,0.00049589,60]
[314243010,1708116663724,-2623.13,0.00049589,60]
[314243011,1708116663734,-500.0,0.00049589,60]
[314243012,1708116663743,-3348.01,0.00049589,60]
[314243013,1708116663753,-500.0,0.00049589,60]
[314243014,1708116663763,-500.0,0.00049589,60]
[314243015,1708116663772,-1043.25,0.00049589,2]
[314243016,1708116663782,-500.0,0.00049589,60]
[314243017,1708116663791,-500.0,0.00049589,60]
[314243018,1708116663801,-500.0,0.00049589,60]
[314243019,1708116663810,-500.0,0.00049589,60]
[314243020,1708116663819,-938.59,0.00049589,60]
[314243021,1708116663828,-500.0,0.00049589,60]
[314243022,1708116663837,-500.0,0.00049589,60]
[314243023,1708116663846,-4181.38,0.00049589,60]
[314243024,1708116663855,-500.0,0.00049589,60]
[314243025,1708116663864,-500.0,0.00049589,60]
[314243026,1708116663873,-172.34,0.00049589,60]
[314243027,1708116663882,-500.0,0.00049589,60]
[314243028,1708116663892,-500.0,0.00049589,60]
[314243029,1708116663901,-500.0,0.00049589,60]
[314243030,1708116663910,-701.83,0.00049589,60]
[314243031,1708116663919,-500.0,0.00049589,60]
[314243032,1708116663928,-1887.23,0.00049589,60]
[314243033,1708116663938,-1928.31,0.00049589,60]
[314243034,1708116663947,-530.67,0.00049589,60]
[314243035,1708116663956,-1141.46,0.00049589,60]
[314243036,1708116663965,-500.0,0.00049589,60]
[314243037,1708116663975,-549.14,0.00049589,60]
[314243038,1708116663984,-659.84,0.00049589,60]
[314243039,1708116663993,-1907.06,0.00049589,60]
[314243040,1708116664002,-500.0,0.00049589,60]
[314243041,1708116664012,-618.79,0.00049589,60]
[314243042,1708116664022,-695.88,0.00049589,60]
[314243043,1708116664032,-1852.12,0.00049589,60]
[314243044,1708116664041,-500.0,0.00049589,60]
[314243045,1708116664051,-1200.81,0.00049589,60]
[314243046,1708116664060,-500.0,0.00049589,60]
[314243047,1708116664069,-500.0,0.00049589,60]
[314243048,1708116664079,-500.0,0.00049589,60]
[314243049,1708116664087,-500.0,0.00049589,60]
[314243050,1708116664100,-555.95466559,0.00049589,60]
[314243051,1708116664110,-1138.27,0.00049589,60]
[314243052,1708116664120,-500.0,0.00049589,60]
[314243053,1708116664129,-500.0,0.00049589,60]
[314243054,1708116664138,-540.08076437,0.00049589,60]
[314243055,1708116664148,-500.0,0.00049589,60]
[314243056,1708116664157,-500.0,0.00049589,60]
[314243057,1708116664167,-576.71,0.00049589,60]
[314243058,1708116664176,-500.0,0.00049589,60]
[314243059,1708116664186,-1125.98,0.00049589,60]
[314243060,1708116664195,-500.0,0.00049589,60]
[314243061,1708116664205,-500.0,0.00049589,60]
[314243062,1708116664215,-500.0,0.00049589,60]
[314243063,1708116664227,-10000.0,0.00049589,60]
[314243064,1708116664236,-500.0,0.00049589,60]
[314243065,1708116664245,-500.0,0.00049589,60]
[314243066,1708116664255,-500.0,0.00049589,60]
[314243067,1708116664267,-776.47,0.00049589,60]
[314243068,1708116664276,-500.0,0.00049589,60]
[314243069,1708116664285,-500.0,0.00049589,60]
[314243070,1708116664295,-2758.1,0.00049589,60]
[314243071,1708116664306,-500.0,0.00049589,60]
[314243072,1708116664316,-500.0,0.00049589,60]
[314243073,1708116664326,-1035.04,0.00049589,60]
[314243074,1708116664336,-812.89,0.00049589,60]
[314243075,1708116664346,-1057.94,0.00049589,60]
[314243076,1708116664356,-679.68,0.00049589,60]
[314243077,1708116664366,-576.08,0.00049589,60]
[314243078,1708116664376,-575.09,0.00049589,60]
[314243079,1708116664385,-1024.23,0.00049589,60]
[314243080,1708116664395,-565.51503161,0.00049589,60]
[314243081,1708116664405,-500.0,0.00049589,60]
[314243082,1708116664415,-500.0,0.00049589,60]
[314243083,1708116664424,-500.0,0.00049589,60]
[314243084,1708116664434,-8064.46,0.00049589,60]
[314243085,1708116664444,-566.25683249,0.00049589,60]
[314243086,1708116664454,-500.0,0.00049589,60]
[314243087,1708116664465,-561.04,0.00049589,60]
[314243088,1708116664474,-3295.35,0.00049589,60]
[314243089,1708116664485,-500.0,0.00049589,60]
[314243090,1708116664495,-500.0,0.00049589,60]
[314243091,1708116664505,-500.0,0.00049589,60]
[314243092,1708116664514,-1999.05,0.00049589,60]
[314243093,1708116664524,-1130.2,0.00049589,60]
[314243094,1708116664535,-954.22,0.00049589,60]
[314243095,1708116664545,-500.0,0.00049589,60]
[314243096,1708116664555,-500.0,0.00049589,60]
[314243097,1708116664565,-500.0,0.00049589,60]
[314243098,1708116664574,-500.0,0.00049589,60]
[314243099,1708116664584,-433.94957374,0.00049589,60]
[314243100,1708116664593,-1283.86,0.00049589,60]
[314243101,1708116664603,-500.0,0.00049589,60]
[314243102,1708116664612,-500.0,0.00049589,60]
[314243103,1708116664622,-2570.14,0.00049589,60]
[314243104,1708116664632,-581.77,0.00049589,60]
[314243105,1708116664641,-500.0,0.00049589,60]
[314243106,1708116664651,-150.0,0.00049589,60]
[314243107,1708116664661,-500.0,0.00049589,60]
[314243108,1708116664671,-533.25667061,0.00049589,60]
[314243109,1708116664681,-928.87,0.00049589,60]
[314243110,1708116664691,-500.0,0.00049589,60]
[314243111,1708116664701,-995.39,0.00049589,60]
[314243112,1708116664711,-2292.78,0.00049589,60]
[314243113,1708116664720,-500.0,0.00049589,60]
[314243114,1708116664730,-512.5,0.00049589,60]
[314243115,1708116664740,-1414.09,0.000496,30]
[314243116,1708116664751,-1414.09,0.000496,2]
[314243117,1708116664760,-1000.0,0.000496,23]
[314243118,1708116664770,-155.0,0.00049603,60]
[314243119,1708116664781,-285.0,0.00049615,60]
[314243120,1708116664792,-1000.0,0.0004962,23]
[314243121,1708116664801,-151.0,0.00049631,2]
[314243122,1708116664811,-1000.0,0.0004964,23]
[314243123,1708116664822,-1425.096121,0.0004964,23]
[314243124,1708116664831,-774.55653229,0.00049652,26]
[314243125,1708116664841,-1000.0,0.0004966,23]
[314243126,1708116664851,-1000.0,0.0004966,23]
[314243127,1708116664860,-1000.0,0.0004968,23]
[314243128,1708116664869,-1000.0,0.0004968,23]
[314243129,1708116664880,-626.62,0.00049689,30]
[314243130,1708116664890,-910.67670006,0.00049695,5]
[314243131,1708116664900,-561.9341426,0.000497,21]
[314243132,1708116664912,-3451.755972,0.000497,24]
[314243133,1708116664928,-200.0,0.000497,2]
[314243134,1708116664938,-170.696341,0.000497,2]
[314243135,1708116664949,-1000.0,0.000497,23]
[314243136,1708116664959,-1000.0,0.000497,23]
[314243137,1708116664969,-628.48,0.000497,2]
[314243138,1708116664979,-188.50717978,0.00049763,2]
[314243139,1708116664989,-154.05,0.000498,6]
[314243140,1708116664999,-154.05,0.000498,6]
[314243141,1708116665009,-154.05,0.000498,6]
[314243142,1708116665019,-367.65,0.000498,6]
[314243143,1708116665030,-367.65,0.000498,6]
[314243144,1708116665043,-367.65,0.000498,6]
[314243145,1708116665058,-367.65,0.000498,6]
[314243146,1708116665072,-367.65,0.000498,6]
[314243147,1708116665083,-367.65,0.000498,6]
[314243148,1708116665093,-367.65,0.000498,6]
[314243149,1708116665104,-367.65,0.000498,6]
[314243150,1708116665115,-367.65,0.000498,6]
[314243151,1708116665126,-367.65,0.000498,6]
[314243152,1708116665137,-367.65,0.000498,6]
[314243153,1708116665147,-367.65,0.000498,6]
[314243154,1708116665158,-367.65,0.000498,6]
[314243155,1708116665168,-367.65,0.000498,6]
[314243156,1708116665179,-367.65,0.000498,6]
[314243157,1708116665190,-367.65,0.000498,6]
[314243158,1708116665201,-367.65,0.000498,6]
[314243159,1708116665212,-367.65,0.000498,6]
[314243160,1708116665224,-367.65,0.000498,6]
[314243161,1708116665236,-367.65,0.000498,6]
[314243162,1708116665247,-796.92960714,0.00049831,46]
[314243163,1708116665259,-5000.0,0.00049843,36]
[314243164,1708116665269,-377.2010419,0.00049861,2]
[314243165,1708116665281,-635.57,0.00049862,60]
[314243166,1708116665292,-635.57,0.00049862,60]
[314243167,1708116665303,-1209.87977454,0.00049862,60]
[314243168,1708116665314,-414.91612172,0.00049863,30]
[314243169,1708116665324,-274.8547982,0.00049863,60]
[314243170,1708116665335,-500.0,0.00049863,60]
[314243171,1708116665345,-500.0,0.00049863,60]
[314243172,1708116665355,-500.0,0.00049863,60]
[314243173,1708116665366,-500.0,0.00049863,60]
[314243174,1708116665377,-500.0,0.00049863,60]
[314243175,1708116665387,-500.0,0.00049863,60]
[314243176,1708116665398,-500.0,0.00049863,60]
[314243177,1708116665408,-500.0,0.00049863,60]
[314243178,1708116665419,-500.0,0.00049863,60]
[314243179,1708116665429,-500.0,0.00049863,60]
[314243180,1708116665440,-500.0,0.00049863,60]
[314243181,1708116665451,-500.0,0.00049863,60]
[314243182,1708116665466,-500.0,0.00049863,60]
[314243183,1708116665477,-172.74930384,0.00049863,60]
[314243184,1708116665488,-500.0,0.00049863,60]
[314243185,1708116665499,-500.0,0.00049863,60]
[314243186,1708116665511,-551.81816462,0.00049863,60]
[314243187,1708116665522,-500.0,0.00049863,60]
[314243188,1708116665533,-500.0,0.00049863,60]
[314243189,1708116665544,-462.53169447,0.00049863,60]
[314243190,1708116665556,-500.0,0.00049863,60]
[314243191,1708116665567,-500.0,0.00049863,60]
[314243192,1708116665579,-500.0,0.00049863,60]
[314243193,1708116665590,-500.0,0.00049863,60]
[314243194,1708116665601,-500.0,0.00049863,60]
[314243195,1708116665611,-500.0,0.00049863,60]
[314243196,1708116665622,-500.0,0.00049863,60]
[314243197,1708116665636,-506.8191254,0.00049863,60]
[314243198,1708116665647,-500.0,0.00049863,30]
[314243199,1708116665658,-500.0,0.00049863,60]
[314243200,1708116665669,-500.0,0.00049863,60]
[314243201,1708116665679,-500.0,0.00049863,60]
[314243202,1708116665690,-500.0,0.00049863,60]
[314243203,1708116665701,-500.0,0.00049863,60]
[314243204,1708116665712,-500.0,0.00049863,60]
[314243205,1708116665722,-500.0,0.00049863,60]
[314243206,1708116665732,-500.0,0.00049863,60]
[314243207,1708116665744,-500.0,0.00049863,60]
[314243208,1708116665755,-500.0,0.00049863,60]
[314243209,1708116665766,-496.05104263,0.00049863,60]
[314243210,1708116665776,-500.0,0.00049863,60]
[314243211,1708116665792,-500.0,0.00049863,60]
[314243212,1708116665804,-500.0,0.00049863,60]
[314243213,1708116665816,-500.0,0.00049863,60]
[314243214,1708116665827,-500.0,0.00049863,60]
[314243215,1708116665837,-500.0,0.00049863,60]
[314243216,1708116665848,-500.0,0.00049863,60]
[314243217,1708116665859,-500.0,0.00049863,60]
[314243218,1708116665869,-500.0,0.00049863,60]
[314243219,1708116665880,-645.09,0.00049863,2]
[314243220,1708116665891,-500.0,0.00049863,60]
[314243221,1708116665902,-500.0,0.00049863,60]
[314243222,1708116665912,-500.0,0.00049863,60]
[314243223,1708116665922,-500.0,0.00049863,60]
[314243224,1708116665933,-500.0,0.00049863,60]
[314243225,1708116665944,-500.0,0.00049863,60]
[314243226,1708116665955,-510.67302295,0.00049863,60]
[314243227,1708116665966,-500.0,0.00049863,60]
[314243228,1708116665977,-500.0,0.00049863,60]
[314243229,1708116665988,-500.0,0.00049863,60]
[314243230,1708116665999,-500.0,0.00049863,60]
[314243231,1708116666009,-500.0,0.00049863,60]
[314243232,1708116666020,-500.0,0.00049863,60]
[314243233,1708116666032,-500.0,0.00049863,60]
[314243234,1708116666043,-500.0,0.00049863,60]
[314243235,1708116666053,-500.0,0.00049863,60]
[314243236,1708116666064,-597.37430098,0.00049863,60]
[314243237,1708116666074,-500.0,0.00049863,60]
[314243238,1708116666085,-500.0,0.00049863,60]
[314243239,1708116666096,-500.0,0.00049863,60]
[314243240,1708116666106,-500.0,0.00049863,60]
[314243241,1708116666121,-500.0,0.00049863,60]
[314243242,1708116666132,-500.0,0.00049863,60]
[314243243,1708116666142,-500.0,0.00049863,60]
[314243244,1708116666152,-500.0,0.00049863,60]
[314243245,1708116666163,-500.0,0.00049863,60]
[314243246,1708116666173,-500.0,0.00049863,60]
[314243247,1708116666183,-613.45437182,0.00049863,60]
[314243248,1708116666195,-507.210236,0.00049863,60]
[314243249,1708116666207,-500.0,0.00049863,60]
[314243250,1708116666221,-500.0,0.00049863,7]
[314243251,1708116666236,-500.0,0.00049863,60]
[314243252,1708116666247,-500.0,0.00049863,60]
[314243253,1708116666259,-500.0,0.00049863,60]
[314243254,1708116666270,-500.0,0.00049863,60]
[314243255,1708116666282,-500.0,0.00049863,60]
[314243256,1708116666293,-500.0,0.00049863,60]
[314243257,1708116666307,-500.0,0.00049863,60]
[314243258,1708116666319,-500.0,0.00049863,60]
[314243259,1708116666330,-500.0,0.00049863,60]
[314243260,1708116666341,-500.0,0.00049863,60]
[314243261,1708116666352,-500.0,0.00049863,60]
[314243262,1708116666363,-500.0,0.00049863,60]
[314243263,1708116666374,-500.0,0.00049863,60]
[314243264,1708116666384,-500.0,0.00049863,60]
[314243265,1708116666396,-500.0,0.00049863,60]
[314243266,1708116666407,-500.0,0.00049863,60]
[314243267,1708116666419,-500.0,0.00049863,60]
[314243268,1708116666430,-207.15591788,0.00049863,60]
[314243269,1708116666441,-500.0,0.00049863,60]
[314243270,1708116666453,-500.0,0.00049863,60]
[314243271,1708116666464,-500.0,0.00049863,60]
[314243272,1708116666476,-500.0,0.00049863,60]
[314243273,1708116666486,-500.0,0.00049863,60]
[314243274,1708116666497,-500.0,0.00049863,60]
[314243275,1708116666508,-500.0,0.00049863,60]
[314243276,1708116666520,-500.0,0.00049863,60]
[314243277,1708116666532,-500.0,0.00049863,60]
[314243278,1708116666543,-500.0,0.00049863,60]
[314243279,1708116666554,-500.0,0.00049863,60]
[314243280,1708116666778,-663.35,0.00049863,60]
[314243281,1708116666790,-500.0,0.00049863,60]
[314243282,1708116666800,-500.0,0.00049863,60]
[314243283,1708116666809,-500.0,0.00049863,60]
[314243284,1708116666819,-500.0,0.00049863,60]
[314243285,1708116666829,-500.0,0.00049863,60]
[314243286,1708116666838,-500.0,0.00049863,60]
[314243287,1708116666850,-500.0,0.00049863,60]
[314243288,1708116666859,-500.0,0.00049863,60]
[314243289,1708116666869,-500.0,0.00049863,60]
[314243290,1708116666881,-500.0,0.00049863,60]
[314243291,1708116666891,-500.0,0.00049863,60]
[314243292,1708116666912,-500.0,0.00049863,60]
[314243293,1708116666931,-500.0,0.00049863,60]
[314243294,1708116666947,-500.0,0.00049863,60]
[314243295,1708116666975,-500.0,0.00049863,60]
[314243296,1708116666998,-500.0,0.00049863,2]
[314243297,1708116667014,-500.0,0.00049863,60]
[314243298,1708116667024,-526.71,0.00049863,60]
[314243299,1708116667035,-498.44072687,0.00049863,60]
[314243300,1708116667064,-500.0,0.00049863,2]
[314243301,1708116667074,-500.0,0.00049863,60]
[314243302,1708116667108,-500.0,0.00049863,60]
[314243303,1708116667127,-536.71,0.00049863,60]
[314243304,1708116667140,-500.0,0.00049863,60]
[314243305,1708116667154,-500.0,0.00049863,60]
[314243306,1708116667170,-532.78,0.00049863,60]
[314243307,1708116667181,-500.0,0.00049863,60]
[314243308,1708116667191,-500.0,0.00049863,60]
[314243309,1708116667201,-500.0,0.00049863,60]
[314243310,1708116667234,-500.0,0.00049863,60]
[314243311,1708116667244,-435.36676498,0.00049863,60]
[314243312,1708116667254,-500.0,0.00049863,60]
[314243313,1708116667264,-528.76,0.00049863,60]
[314243314,1708116667284,-500.0,0.00049863,60]
[314243315,1708116667313,-500.0,0.00049863,60]
[314243316,1708116667329,-500.0,0.00049863,60]
[314243317,1708116667346,-639.08,0.00049863,60]
[314243318,1708116667356,-500.0,0.00049863,60]
[314243319,1708116667366,-566.16,0.00049863,60]
[314243320,1708116667376,-500.0,0.00049863,60]
[314243321,1708116667385,-500.0,0.00049863,60]
[314243322,1708116667395,-500.0,0.00049863,60]
[314243323,1708116667405,-644.52,0.00049863,60]
[314243324,1708116667415,-569.39,0.00049863,60]
[314243325,1708116667424,-500.0,0.00049863,60]
[314243326,1708116667434,-500.0,0.00049863,60]
[314243327,1708116667444,-518.66,0.00049863,60]
[314243328,1708116667453,-500.0,0.00049863,60]
[314243329,1708116667463,-500.0,0.00049863,60]
[314243330,1708116667473,-500.0,0.00049863,60]
[314243331,1708116667482,-500.0,0.00049863,60]
[314243332,1708116667492,-600.48,0.00049863,60]
[314243333,1708116667502,-500.0,0.00049863,60]
[314243334,1708116667511,-250.0,0.00049863,60]
[314243335,1708116667521,-500.0,0.00049863,60]
[314243336,1708116667531,-500.0,0.00049863,60]
[314243337,1708116667542,-833.05,0.00049863,60]
[314243338,1708116667551,-500.0,0.00049863,60]
[314243339,1708116667560,-500.0,0.00049863,60]
[314243340,1708116667569,-528.04,0.00049863,60]
[314243341,1708116667579,-500.0,0.00049863,60]
[314243342,1708116667589,-2123.33,0.00049863,60]
[314243343,1708116667599,-500.0,0.00049863,60]
[314243344,1708116667608,-572.16,0.00049863,60]
[314243345,1708116667619,-500.0,0.00049863,60]
[314243346,1708116667628,-500.0,0.00049863,60]
[314243347,1708116667638,-1506.37,0.00049863,2]
[314243348,1708116667648,-500.0,0.00049863,60]
[314243349,1708116667658,-500.0,0.00049863,60]
[314243350,1708116667667,-500.0,0.00049863,60]
[314243351,1708116667678,-500.0,0.00049863,60]
[314243352,1708116667693,-500.0,0.00049863,60]
[314243353,1708116667702,-500.0,0.00049863,60]
[314243354,1708116667712,-500.0,0.00049863,60]
[314243355,1708116667723,-544.34,0.00049863,60]
[314243356,1708116667734,-500.0,0.00049863,60]
[314243357,1708116667748,-500.0,0.00049863,60]
[314243358,1708116667764,-500.0,0.00049863,60]
[314243359,1708116667775,-500.0,0.00049863,60]
[314243360,1708116667786,-500.0,0.00049863,60]
[314243361,1708116667796,-500.0,0.00049863,60]
[314243362,1708116667807,-574.7,0.00049863,60]
[314243363,1708116667818,-500.0,0.00049863,60]
[314243364,1708116667829,-500.0,0.00049863,60]
[314243365,1708116667841,-500.0,0.00049863,60]
[314243366,1708116667851,-618.75,0.00049863,60]
[314243367,1708116667862,-792.04,0.00049863,60]
[314243368,1708116667873,-500.0,0.00049863,60]
[314243369,1708116667884,-500.0,0.00049863,60]
[314243370,1708116667895,-500.0,0.00049863,60]
[314243371,1708116667906,-500.0,0.00049863,60]
[314243372,1708116667916,-578.89,0.00049863,60]
[314243373,1708116667926,-500.0,0.00049863,60]
[314243374,1708116667937,-506.3,0.00049863,60]
[314243375,1708116667948,-627.13,0.00049863,60]
[314243376,1708116667959,-500.0,0.00049863,60]
[314243377,1708116667969,-500.0,0.00049863,60]
[314243378,1708116667980,-500.0,0.00049863,60]
[314243379,1708116667990,-500.0,0.00049863,60]
[314243380,1708116668001,-703.48,0.00049863,60]
[314243381,1708116668011,-693.84,0.00049863,60]
[314243382,1708116668022,-500.0,0.00049863,60]
[314243383,1708116668036,-500.0,0.00049863,60]
[314243384,1708116668052,-500.0,0.00049863,60]
[314243385,1708116668063,-1173.51,0.00049863,7]
[314243386,1708116668074,-500.0,0.00049863,60]
[314243387,1708116668085,-500.0,0.00049863,60]
[314243388,1708116668096,-536.17,0.00049863,60]
[314243389,1708116668106,-500.0,0.00049863,60]
[314243390,1708116668117,-700.31,0.00049863,60]
[314243391,1708116668128,-574.15,0.00049863,60]
[314243392,1708116668138,-500.0,0.00049863,60]
[314243393,1708116668148,-583.21,0.00049863,60]
[314243394,1708116668159,-500.0,0.00049863,60]
[314243395,1708116668170,-500.0,0.00049863,60]
[314243396,1708116668181,-500.0,0.00049863,7]
[314243397,1708116668191,-500.0,0.00049863,60]
[314243398,1708116668202,-500.0,0.00049863,60]
[314243399,1708116668213,-500.0,0.00049863,60]
[314243400,1708116668229,-500.0,0.00049863,60]
[314243401,1708116668239,-766.54,0.00049863,60]
[314243402,1708116668251,-500.0,0.00049863,60]
[314243403,1708116668262,-500.0,0.00049863,60]
[314243404,1708116668273,-500.0,0.00049863,60]
[314243405,1708116668284,-500.0,0.00049863,60]
[314243406,1708116668299,-500.0,0.00049863,60]